bitfinex/quotes_ETHUSD_20220227
["timestamp","ask_amount","ask_price","bid_price","bid_amount"]
[1646002728776,0.30183233,2621.4,2620.1,2.86356]
[1646002728975,0.00183233,2621.4,2620.1,2.86356]
[1646002729176,0.00183233,2621.4,2620.3,2.14774278]
[1646002729380,1.0,2621.2,2620.3,2.14774278]
[1646002729611,1.0,2621.2,2620.2,0.25]
[1646002729809,0.70739352,2621.7,2620.2,0.25]
[1646002730014,0.70739352,2621.8,2620.7,2.14774278]
[1646002730210,1.0,2621.2,2620.7,2.14774278]
[1646002730410,0.70739352,2621.7,2620.6,0.9544]
[1646002730610,0.005,2621.2,2620.6,0.9544]
[1646002730812,0.70739352,2621.7,2620.6,0.9544]
[1646002731010,0.70739352,2621.8,2620.6,0.9544]
[1646002731210,0.995,2621.2,2620.6,0.9544]
[1646002731411,0.3,2621.2,2620.3,0.1526]
[1646002731615,0.305,2621.2,2620.3,0.1526]
[1646002731816,0.005,2621.2,2620.3,0.34623795]
[1646002732019,0.005,2621.2,2620.7,2.14774278]
[1646002732020,0.3,2621.2,2620.7,2.14774278]
[1646002732216,1.0,2621.4,2620.7,2.14774278]
[1646002732516,0.3,2621.4,2620.8,0.23782395]
[1646002733115,0.3,2621.5,2620.8,0.23782395]
[1646002733373,0.00182605,2621.5,2620.8,0.23782395]
[1646002733566,1.0,2621.4,2620.8,0.24637497]
[1646002733764,1.3,2621.4,2620.8,0.24637497]
[1646002733965,0.3,2621.4,2620.8,0.24637497]
[1646002734364,1.0,2621.5,2620.8,0.24637497]
[1646002734669,0.30182605,2621.6,2621.0,2.14774278]
[1646002734670,1.00182605,2621.6,2621.0,2.14774278]
[1646002734867,1.0,2621.6,2621.2,0.18619639]
[1646002735066,0.70739352,2622.3,2621.2,0.64519639]
[1646002735067,1.0,2622.3,2621.2,0.64519639]
[1646002735268,0.00182605,2622.5,2621.8,2.14774278]
[1646002735269,0.70921957,2622.2,2621.8,2.14774278]
[1646002735470,0.70921957,2622.3,2621.9,0.22603931]
[1646002735671,0.70739352,2622.3,2621.7,0.1525]
[1646002735869,1.00921957,2622.3,2621.4,2.30024278]
[1646002736070,1.00921957,2622.3,2621.6,0.25]
[1646002736275,0.30182605,2622.3,2621.7,0.1525]
[1646002736472,0.70739352,2622.3,2621.5,0.95397]
[1646002736672,0.70921957,2622.3,2621.2,1.0]
[1646002736877,0.70921957,2622.3,2621.8,2.14774278]
[1646002736878,0.00182605,2622.3,2621.8,2.14774278]
[1646002737122,0.70739352,2622.6,2621.8,2.14774278]
[1646002737328,0.70921957,2622.6,2621.9,0.1525]
[1646002737527,1.94105062,2622.9,2621.8,0.4025]
[1646002737528,0.70739352,2622.7,2621.8,0.4025]
[1646002737726,0.00182605,2622.6,2621.8,0.4025]
[1646002737927,0.70921957,2622.7,2621.8,0.4025]
[1646002738128,0.70739352,2622.6,2621.8,0.4025]
[1646002738328,1.00921957,2622.7,2621.8,0.4025]
[1646002738727,0.70739352,2622.5,2621.8,0.4025]
[1646002740129,1.24287667,2622.7,2621.8,0.4025]
[1646002740130,0.70739352,2622.3,2621.8,0.4025]
[1646002740328,0.70739352,2622.3,2621.8,0.25]
[1646002740528,0.70739352,2622.4,2621.8,0.25]
[1646002740731,1.00739352,2622.4,2621.8,0.25]
[1646002740964,2.00739352,2622.4,2621.3,0.1525]
[1646002741165,0.70921957,2622.3,2621.3,0.1525]
[1646002741367,0.00182605,2622.3,2621.3,0.1525]
[1646002741768,0.00182605,2622.3,2621.8,8.29562166]
[1646002741969,0.00182605,2622.5,2621.8,6.59263236]
[1646002742170,1.00921957,2622.7,2621.8,7.84263236]
[1646002742369,1.00739352,2622.7,2622.1,2.14774278]
[1646002742771,0.70921957,2622.8,2622.1,2.14774278]
[1646002743171,0.70921957,2622.8,2621.8,7.84263236]
[1646002743572,0.70921957,2622.8,2621.8,1.25]
[1646002743777,0.70921957,2622.8,2621.8,0.25]
[1646002744171,0.70739352,2622.7,2621.8,0.25]
[1646002744623,0.70739352,2622.7,2621.8,0.8]
[1646002744819,1.00921957,2622.8,2621.8,0.8]
[1646002745121,0.70921957,2622.8,2621.8,0.8]
[1646002745723,0.70921957,2622.8,2621.8,0.25]
[1646002745922,0.70739352,2622.7,2621.8,0.25]
[1646002746122,1.0,2622.5,2621.8,0.25]
[1646002746323,2.00739352,2622.5,2621.8,0.25]
[1646002746921,0.70739352,2622.4,2621.8,0.25]
[1646002747325,0.72362481,2622.4,2621.8,0.25]
[1646002750065,1.70921957,2622.5,2622.3,8.74037514]
[1646002750066,0.70921957,2622.5,2622.3,8.74037514]
[1646002750271,1.0,2623.2,2622.3,10.67307514]
[1646002750272,0.00182605,2622.6,2622.3,10.67307514]
[1646002750570,0.00182605,2623.1,2622.5,2.14774278]
[1646002750763,0.70739352,2623.5,2622.7,2.14774278]
[1646002750764,0.00182605,2623.2,2622.7,2.14774278]
[1646002750966,4.44105062,2623.8,2622.6,7.14263236]
[1646002750967,0.7150351,2623.4,2622.6,7.14263236]
[1646002751168,0.71320905,2623.4,2622.6,1.55]
[1646002751472,0.00764158,2623.4,2623.3,8.74037514]
[1646002751668,0.00182605,2623.8,2623.4,3.1327]
[1646002751867,0.00182605,2624.0,2623.7,8.74037514]
[1646002752112,0.70921957,2624.1,2623.9,2.14774278]
[1646002752317,0.50901584,2624.7,2624.0,9.09263236]
[1646002752517,0.5,2624.9,2624.0,9.09263236]
[1646002752518,0.5,2624.9,2624.7,0.0142]
[1646002752718,6.608e-05,2625.0,2624.8,2.14774278]
[1646002752927,6.608e-05,2626.2,2625.0,2.5]
[1646002753122,2.7698503,2627.1,2625.6,2.14774278]
[1646002753123,1.88800861,2626.8,2625.6,2.14774278]
[1646002753322,0.0361327,2627.1,2626.7,8.74037514]
[1646002753520,0.0361327,2627.1,2626.7,4.04203047]
[1646002753817,0.0361327,2627.1,2626.8,0.55]
[1646002754018,0.0361327,2627.1,2626.2,0.55]
[1646002754220,0.0361327,2627.1,2626.3,3.5]
[1646002754420,0.06,2627.4,2626.3,3.5]
[1646002754421,0.06,2627.4,2627.0,6.18977325]
[1646002754623,0.06,2627.4,2626.6,2.5]
[1646002754624,1.2026664,2628.1,2627.3,6.18977325]
[1646002754819,34.89286305,2628.2,2628.0,6.18977325]
[1646002755025,3.5518563,2629.2,2628.2,2.5]
[1646002755228,3.5518563,2629.2,2629.0,6.18977325]
[1646002755229,0.90265833,2629.2,2629.0,6.18977325]
[1646002755433,0.01747304,2629.8,2629.1,3.5]
[1646002755622,0.01747304,2629.8,2629.1,0.55]
[1646002756576,0.01747304,2629.8,2629.0,0.25]
[1646002756976,1.01747304,2629.8,2629.0,0.25]
[1646002757380,1.0,2629.7,2629.0,0.25]
[1646002757579,0.01929631,2629.8,2629.0,0.25]
[1646002757780,0.01929631,2629.8,2629.0,6.93977325]
[1646002757986,0.01929631,2629.8,2629.0,0.8]
[1646002758181,1.01747304,2629.8,2629.0,0.8]
[1646002758381,0.00579799,2629.5,2629.0,0.8]
[1646002759180,1.0,2629.7,2629.0,0.8]
[1646002759381,1.00182327,2629.7,2629.0,0.8]
[1646002759642,0.00579799,2629.4,2629.0,0.8]
[1646002760239,0.00579799,2629.4,2629.3,6.13977325]
[1646002760439,0.00160293,2629.7,2629.3,6.68977325]
[1646002760644,0.00160293,2629.7,2629.4,2.14774278]
[1646002760839,0.00160293,2629.7,2629.5,0.55]
[1646002761839,0.00160293,2629.7,2629.0,4.24203047]
[1646002761840,0.00160293,2629.7,2629.0,0.25]
[1646002762040,0.00160293,2629.7,2628.9,0.55]
[1646002762041,1.00160293,2629.7,2628.9,0.55]
[1646002762238,1.00160293,2629.7,2628.9,4.69161458]
[1646002762442,1.0034262,2629.7,2628.7,0.25]
[1646002762639,1.3034262,2629.7,2628.9,0.55]
[1646002762840,0.3034262,2629.7,2628.9,0.55]
[1646002763244,0.00574719,2629.5,2628.9,0.55]
[1646002763464,0.0034262,2629.7,2629.0,3.5]
[1646002763666,0.0034262,2629.7,2629.6,2.5438718]
[1646002763667,0.00160293,2629.7,2629.6,2.5438718]
[1646002763866,0.00160293,2629.7,2629.6,0.55]
[1646002764065,0.00160293,2629.7,2629.6,1.55]
[1646002764263,0.00160293,2629.7,2629.6,2.69774278]
[1646002764264,2.93e-06,2629.7,2629.6,2.69774278]
[1646002764465,2.93e-06,2629.7,2629.6,6.49774278]
[1646002764668,2.93e-06,2629.7,2629.6,7.19774278]
[1646002764669,0.00186652,2629.7,2629.6,7.19774278]
[1646002764866,0.01747304,2629.8,2629.6,1.55]
[1646002765267,0.01747304,2629.8,2629.6,0.55]
[1646002765676,0.1472,2633.6,2629.8,14.13]
[1646002765677,0.5,2632.2,2629.8,14.13]
[1646002765882,0.5,2632.2,2630.8,0.01240424]
[1646002765883,1.73e-05,2631.0,2630.8,0.01240424]
[1646002766076,1.73e-05,2631.0,2630.4,11.63]
[1646002766077,0.0331499,2632.3,2630.9,12.18592616]
[1646002766278,0.0331499,2632.3,2631.7,2.39774278]
[1646002766474,0.04774757,2632.1,2631.9,2.14774278]
[1646002766676,0.03089747,2632.3,2632.0,0.55]
[1646002767323,9.747e-05,2632.3,2632.1,3.5]
[1646002767520,1.0,2633.2,2632.2,12.11861458]
[1646002767721,0.95,2633.2,2633.1,4.69161458]
[1646002767918,0.016733,2633.5,2633.1,5.14861458]
[1646002768119,1.45552642,2633.5,2633.1,0.707]
[1646002768426,1.45552642,2633.5,2633.1,0.25]
[1646002768427,1.45548901,2633.5,2633.1,0.25]
[1646002768617,1.45548901,2633.5,2633.1,0.05095455]
[1646002769017,1.45548901,2633.5,2633.1,0.30095455]
[1646002769218,0.0057979,2633.4,2633.1,0.30095455]
[1646002769418,0.0057979,2633.4,2633.1,0.05095455]
[1646002769820,0.016733,2633.5,2633.3,4.69161458]
[1646002770021,1.04167105,2633.8,2633.4,9.669]
[1646002770022,5.842e-05,2633.8,2633.4,9.669]
[1646002770221,0.02119273,2634.1,2633.7,4.69161458]
[1646002770222,8.01e-05,2634.1,2633.7,4.69161458]
[1646002770422,0.05,2635.6,2634.0,4.69161458]
[1646002770618,0.05,2635.6,2634.1,0.707]
[1646002771570,0.05,2635.6,2634.4,2.5438718]
[1646002771768,0.05,2635.6,2634.5,0.457]
[1646002772069,0.05,2635.6,2634.7,0.25]
[1646002772272,0.05,2635.6,2634.8,0.457]
[1646002772472,2.85225722,2635.3,2634.9,0.457]
[1646002772673,4.29011793,2635.3,2634.9,0.457]
[1646002772972,0.00576981,2635.3,2634.9,0.457]
[1646002773772,2.85225722,2635.1,2633.9,2.39774278]
[1646002773977,0.01447768,2635.0,2633.2,0.13819997]
[1646002774274,3.85225722,2634.7,2633.0,0.457]
[1646002774480,0.01279063,2634.4,2633.0,3.5]
[1646002774735,0.01279063,2634.4,2632.4,0.457]
[1646002774736,1.0,2633.7,2632.4,0.457]
[1646002774930,1.0,2633.7,2632.0,2.5438718]
[1646002774931,1.0,2633.5,2632.5,0.25]
[1646002775125,0.0018071,2633.4,2632.5,0.25]
[1646002775325,0.3,2633.7,2632.5,0.25]
[1646002775326,0.0018071,2633.6,2632.5,0.25]
[1646002775726,0.3018071,2633.6,2632.3,0.2543]
[1646002776133,3.15225722,2633.0,2632.3,0.2543]
[1646002776328,3.15225722,2633.0,2631.0,3.5]
[1646002776329,0.3,2632.6,2631.0,3.5]
[1646002776527,1.0,2632.5,2630.8,0.25]
[1646002776729,4.8,2632.4,2632.2,3.189e-05]
[1646002776929,6.35406432,2632.3,2632.2,3.189e-05]
[1646002777234,2.5,2632.2,2630.1,0.00107605]
[1646002777432,2.5,2632.2,2630.1,0.25]
[1646002777433,2.85225722,2631.6,2630.1,0.25]
[1646002777631,0.0018071,2631.5,2630.1,0.25]
[1646002777830,1.3585607,2631.7,2630.1,0.25]
[1646002777831,1.0,2631.3,2630.1,0.25]
[1646002778032,1.0,2631.0,2630.1,0.25]
[1646002778483,0.0018071,2631.0,2630.1,0.25]
[1646002778687,0.0018071,2631.6,2630.3,4.69161458]
[1646002778978,0.0018071,2631.2,2630.4,3.5]
[1646002779180,0.0018071,2631.6,2630.3,6.16155348]
[1646002779480,0.0018071,2631.6,2630.1,2.7938718]
[1646002779681,1.0,2631.5,2630.1,0.707]
[1646002779882,0.0018071,2631.4,2630.1,0.707]
[1646002780080,1.0,2631.3,2630.3,0.00116541]
[1646002780284,0.0018071,2631.2,2630.3,0.00116541]
[1646002780783,0.0018071,2631.2,2630.6,2.14774278]
[1646002780983,0.0018071,2631.2,2630.1,0.25]
[1646002780984,0.0018071,2631.3,2630.2,2.14774278]
[1646002781286,0.0018071,2631.3,2630.2,2.15162644]
[1646002781482,2.3585607,2631.7,2630.2,5.65162644]
[1646002781483,0.0018071,2631.6,2630.2,5.65162644]
[1646002781682,0.0018071,2631.6,2630.2,2.15162644]
[1646002781884,0.0018071,2631.6,2630.2,0.00388366]
[1646002782117,1.0,2631.4,2630.2,0.00168154]
[1646002782318,0.0018071,2631.3,2630.1,0.25]
[1646002782521,0.0018071,2631.3,2630.3,4.69161458]
[1646002782719,0.0018071,2631.3,2630.4,0.00388344]
[1646002783220,0.0018071,2631.6,2630.9,2.14774278]
[1646002783419,2.3603678,2631.7,2630.9,2.39774278]
[1646002783619,1.3603678,2631.7,2630.9,2.39774278]
[1646002783824,1.3603678,2631.7,2630.9,0.25]
[1646002784526,1.2603678,2631.7,2630.9,0.25]
[1646002785322,1.2603678,2631.7,2630.8,2.14885231]
[1646002785623,1.5603678,2631.7,2630.8,2.14885231]
[1646002785870,1.5603678,2631.7,2630.8,2.14774278]
[1646002786073,1.2603678,2631.7,2630.8,2.14774278]
[1646002786274,1.2603678,2631.7,2630.8,2.39774278]
[1646002787274,1.2603678,2631.7,2630.8,2.78044278]
[1646002787475,1.2603678,2631.7,2631.5,2.14774278]
[1646002787676,0.0008,2632.0,2631.5,2.14774278]
[1646002787677,0.0008,2632.0,2631.8,0.3827]
[1646002787878,0.0008,2632.0,2631.6,2.14774278]
[1646002787879,0.0008,2632.0,2631.9,4.69161458]
[1646002788278,0.0018071,2632.6,2631.9,6.51251455]
[1646002788478,0.3031,2632.7,2631.9,6.51251455]
[1646002788479,7.1e-06,2632.7,2632.5,5.07431458]
[1646002788679,1.0,2633.9,2632.7,0.3827]
[1646002788878,7.3,2634.7,2632.9,0.3827]
[1646002789081,7.3,2634.7,2633.0,0.457]
[1646002789082,0.5,2634.4,2633.0,0.457]
[1646002789277,0.5,2634.4,2633.6,0.25]
[1646002789476,0.50180034,2634.4,2633.0,0.457]
[1646002789718,0.00180034,2634.4,2633.1,0.25]
[1646002790015,0.00180034,2634.4,2633.6,2.14774278]
[1646002790215,0.00180034,2634.6,2633.1,0.25]
[1646002790416,0.00180034,2634.6,2633.7,2.14774278]
[1646002790615,0.00180034,2634.6,2633.1,0.6327]
[1646002790817,0.00180034,2634.6,2633.1,0.707]
[1646002791115,0.00576074,2634.3,2633.1,2.60474278]
[1646002791720,0.00576074,2634.3,2633.1,0.457]
[1646002791915,0.00180034,2634.6,2633.1,0.457]
[1646002792115,3.50180034,2634.6,2633.1,0.457]
[1646002792324,0.00576075,2633.8,2633.1,0.457]
[1646002793019,0.3,2634.4,2633.1,0.457]
[1646002793881,3.8,2634.6,2633.1,0.457]
[1646002795283,4.8,2634.6,2633.1,0.457]
[1646002795584,1.0,2634.3,2633.1,0.457]
[1646002795786,3.5,2634.2,2633.0,0.25]
[1646002795985,3.5,2634.2,2632.7,0.457]
[1646002795986,1.0,2634.1,2632.7,0.457]
[1646002796185,2.85225722,2633.9,2632.7,0.707]
[1646002796388,2.85225722,2633.6,2631.9,0.13819997]
[1646002796587,10.80179354,2633.5,2631.9,0.13819997]
[1646002796792,12.10179354,2633.5,2631.9,0.38819997]
[1646002797221,4.10225722,2633.2,2631.5,2.14774278]
[1646002797423,4.10225722,2633.2,2631.5,0.25]
[1646002797424,12.58,2632.8,2631.5,0.25]
[1646002797722,12.58,2632.8,2631.2,0.00469653]
[1646002797723,2.85225722,2631.8,2631.2,0.00469653]
[1646002797922,2.85225722,2631.8,2631.0,2.5438718]
[1646002798123,0.00179354,2631.8,2631.0,2.5438718]
[1646002798324,1.0,2632.1,2631.0,2.49856833]
[1646002798525,0.00179354,2632.0,2631.0,2.49856833]
[1646002799124,0.00179354,2632.0,2631.1,0.3827]
[1646002799331,0.00179354,2632.2,2631.9,2.49856833]
[1646002799529,2.85225722,2633.6,2632.0,4.64631111]
[1646002799530,0.00179354,2633.1,2632.0,4.64631111]
[1646002799724,0.00179354,2633.1,2631.7,3.14774278]
[1646002799925,0.41594511,2633.4,2631.6,3.20556833]
[1646002800128,0.00179354,2633.3,2632.0,4.64631111]
[1646002800326,0.41798473,2633.5,2632.1,0.25]
[1646002800729,0.4406593,2633.5,2632.2,2.14774278]
[1646002800983,3.5,2633.4,2631.6,2.49856833]
[1646002801284,2.85225722,2632.8,2631.2,0.25]
[1646002801510,0.01210229,2632.4,2630.0,2.49856833]
[1646002801687,0.01245179,2631.8,2630.0,4.64631111]
[1646002801891,0.457,2632.0,2631.1,0.00452049]
[1646002802086,0.00259133,2630.7,2630.0,4.64631111]
[1646002802289,0.00259133,2630.7,2629.9,7.3]
[1646002802487,0.00259133,2630.7,2629.9,7.55]
[1646002802685,0.00259133,2630.7,2630.3,0.50896907]
[1646002803086,0.00259133,2630.7,2629.0,0.01281747]
[1646002803087,0.00259133,2630.7,2630.6,4.64631111]
[1646002803288,1.0,2632.4,2630.6,8.14631111]
[1646002803490,1.0,2632.4,2630.9,0.01293885]
[1646002803692,0.44823783,2632.3,2630.4,4.64631111]
[1646002803889,3.23495722,2632.5,2630.5,3.5]
[1646002803890,1.3827,2632.5,2630.5,3.5]
[1646002804088,1.0,2632.5,2631.6,4.64631111]
[1646002804289,1.0,2632.0,2631.2,0.50896907]
[1646002804494,1.0,2632.0,2630.8,0.01205983]
[1646002804720,2.85225722,2632.4,2630.3,0.457]
[1646002804721,0.25,2632.6,2630.7,3.5]
[1646002804920,1.0,2632.7,2631.6,4.89631111]
[1646002805123,0.41814543,2632.6,2631.7,0.457]
[1646002805320,0.93404041,2633.2,2631.7,0.457]
[1646002805523,0.42375001,2633.1,2632.3,4.64631111]
[1646002805722,0.02269193,2632.7,2632.3,4.64631111]
[1646002805922,0.02269193,2632.7,2632.3,5.10331111]
[1646002806122,0.02269193,2632.7,2632.3,0.457]
[1646002806323,0.02269193,2632.7,2631.3,0.13819997]
[1646002806523,0.41851997,2632.6,2631.3,0.13819997]
[1646002806726,0.00178696,2632.7,2631.1,0.0041864]
[1646002806727,7.15347719,2632.5,2631.1,0.0041864]
[1646002806925,11.63,2632.3,2631.1,0.0041864]
[1646002807131,3.27256415,2632.2,2631.1,8.64e-05]
[1646002807333,1.0,2631.5,2631.1,8.64e-05]
[1646002807526,0.00178643,2631.4,2631.1,8.64e-05]
[1646002807727,2.85225722,2631.2,2628.9,7.31208585]
[1646002807930,2.85225722,2631.0,2629.1,0.3827]
[1646002808129,3.92145501,2630.9,2629.1,0.3827]
[1646002808367,2.85225722,2630.6,2629.2,4.64631111]
[1646002808570,2.85225722,2630.6,2628.8,2.49856833]
[1646002808571,4.50178643,2630.5,2628.8,2.49856833]
[1646002808773,0.42038046,2630.4,2628.8,2.49856833]
[1646002808970,1.0,2630.2,2629.8,0.50896907]
[1646002809170,1.0,2630.5,2629.6,3.88401734]
[1646002809572,0.00178643,2630.8,2629.6,3.88401734]
[1646002809881,1.0,2630.7,2629.6,3.88401734]
[1646002810075,3.95190921,2630.6,2629.6,3.88401734]
[1646002810277,1.0,2630.2,2629.6,3.88401734]
[1646002810477,2.85225722,2629.8,2629.6,3.88401734]
[1646002810779,2.85225722,2629.8,2627.7,7.3]
[1646002810780,1.94198266,2629.6,2627.7,7.3]
[1646002810981,3.95573388,2629.5,2627.7,7.3]
[1646002811175,2.24198266,2629.6,2627.7,7.3]
[1646002811176,0.45568248,2629.4,2627.7,7.3]
[1646002811378,1.0,2629.2,2628.1,2.14774278]
[1646002811576,1.0,2629.2,2627.7,7.3]
[1646002811577,2.85225722,2628.8,2627.7,7.3]
[1646002811776,2.85225722,2628.8,2628.1,0.00510975]
[1646002811777,3.5,2628.7,2628.1,0.00510975]
[1646002811983,1.0,2628.6,2628.1,0.00510975]
[1646002812238,1.0,2629.2,2628.5,2.49856833]
[1646002812443,1.0,2629.2,2628.1,0.00510975]
[1646002812633,1.0,2629.8,2628.1,5.64774278]
[1646002812835,0.45525188,2629.7,2628.1,5.64774278]
[1646002813035,1.45525188,2629.7,2628.3,0.00510926]
[1646002813237,0.83776188,2629.6,2628.3,0.00510926]
[1646002813440,1.0,2628.3,2626.8,7.3]
[1646002813636,1.457,2628.3,2626.8,7.3]
[1646002813834,0.457,2628.3,2626.8,7.3]
[1646002814038,0.457,2628.3,2626.1,7.3]
[1646002814039,1.0,2627.9,2626.1,7.3]
[1646002814239,1.0,2627.9,2626.1,2.14774278]
[1646002814240,3.957,2627.8,2626.1,2.14774278]
[1646002814540,3.957,2627.8,2625.7,2.49856833]
[1646002814541,2.85225722,2627.3,2625.7,2.49856833]
[1646002814741,2.85225722,2627.3,2624.8,0.90605808]
[1646002814742,1.0,2627.2,2625.1,2.14774278]
[1646002814940,1.5,2627.2,2625.9,2.14774278]
[1646002815137,0.5,2627.2,2626.0,2.49856833]
[1646002815638,0.5,2627.2,2626.0,3.96985196]
[1646002815866,0.5,2627.2,2626.7,4.64631111]
[1646002816074,0.5,2627.2,2626.0,3.96985196]
[1646002816273,0.25,2627.8,2627.1,4.64631111]
[1646002816474,2.8566662,2628.7,2627.7,4.64631111]
[1646002816475,1.0,2628.7,2627.7,4.64631111]
[1646002816671,0.19891861,2628.9,2627.7,4.64631111]
[1646002816672,0.19891861,2628.9,2628.0,0.01211262]
[1646002816870,0.5,2629.2,2628.0,0.01211262]
[1646002817274,2.85225722,2628.8,2627.5,0.13819997]
[1646002817480,0.2241196,2627.8,2627.5,0.13819997]
[1646002817674,0.2241196,2627.8,2627.7,4.64631111]
[1646002817675,0.18042,2627.8,2627.7,4.64631111]
[1646002817874,6e-05,2627.8,2627.7,4.64631111]
[1646002818074,0.0438,2627.8,2627.7,4.64631111]
[1646002818276,3.8,2629.2,2627.8,2.9264]
[1646002818473,3.8,2629.2,2628.1,0.01226154]
[1646002818677,0.25,2629.8,2629.0,2.14774278]
[1646002818874,0.00178643,2630.8,2629.1,3.5]
[1646002819074,0.00178643,2630.8,2629.8,2.14774278]
[1646002819275,0.00178643,2630.8,2630.1,4.64631111]
[1646002819474,0.9179,2631.0,2629.9,4.64631111]
[1646002819475,0.91968643,2631.0,2629.9,4.64631111]
[1646002819738,0.41968643,2631.0,2630.5,2.14774278]
[1646002819938,0.4179,2631.0,2629.9,2.49856833]
[1646002820139,0.44271568,2631.0,2629.9,2.50221654]
[1646002820337,0.48391804,2630.9,2629.9,0.00364821]
[1646002820539,2.84343214,2630.9,2629.9,4.821e-05]
[1646002820737,2.86461996,2630.0,2629.9,4.821e-05]
[1646002820940,2.86461996,2630.0,2627.8,4.5]
[1646002820941,0.0008,2629.7,2627.8,2.49856833]
[1646002821140,2.85225722,2628.5,2627.0,0.1521]
[1646002821335,2.85225722,2628.5,2625.2,0.39527162]
[1646002821336,2.85225722,2627.6,2625.2,0.01275162]
[1646002821537,0.8055,2627.6,2626.0,0.13819997]
[1646002821737,1.0,2627.7,2626.4,0.3827]
[1646002821936,1.0,2627.7,2626.0,0.13819997]
[1646002821937,3.5,2627.6,2626.0,0.13819997]
[1646002822138,0.5,2627.9,2625.7,0.1522]
[1646002822139,0.38251,2627.5,2625.7,0.1522]
[1646002822339,0.38251,2627.5,2625.3,4.64631111]
[1646002822340,1.0,2627.1,2625.3,4.64631111]
[1646002822536,1.0,2627.1,2624.9,0.1522]
[1646002822537,1.457,2627.1,2624.9,0.1522]
[1646002822740,1.3,2626.4,2624.7,0.00898064]
[1646002822938,1.3,2626.4,2625.0,0.04035806]
[1646002822939,5.0,2625.1,2625.0,0.04035806]
[1646002823137,0.02491233,2624.8,2624.7,0.01796128]
[1646002823379,1.02491233,2624.8,2624.7,0.01796128]
[1646002823578,0.97511233,2625.5,2624.7,0.01796128]
[1646002823778,0.97511233,2625.5,2624.7,0.03006451]
[1646002823981,0.25,2626.2,2624.7,0.03006451]
[1646002824184,0.97511233,2626.4,2624.8,0.01216377]
[1646002824386,3.5,2626.8,2624.8,0.01216377]
[1646002824387,0.1523,2626.3,2624.8,0.01216377]
[1646002824587,3.5,2626.7,2624.8,0.01216377]
[1646002824785,0.457,2626.6,2624.3,0.00851712]
[1646002824983,0.25,2627.0,2624.3,0.00851712]
[1646002824984,0.99911233,2626.2,2624.6,0.01265512]
[1646002825183,0.5,2626.5,2625.1,7.3]
[1646002825388,0.5,2626.5,2625.4,0.01251779]
[1646002825586,0.25,2627.0,2625.4,0.01251779]
[1646002825783,0.1522,2626.9,2625.4,0.01251779]
[1646002825985,3.6522,2626.9,2625.2,0.00440944]
[1646002826185,0.99911233,2626.1,2623.7,0.13819997]
[1646002826389,5.0,2625.2,2623.7,0.13819997]
[1646002826586,3.957,2625.1,2623.7,0.13819997]
[1646002826885,1.75611233,2625.1,2623.7,0.13819997]
[1646002827128,0.5,2624.7,2623.7,0.01703424]
[1646002827544,1.1373123,2625.2,2623.7,0.01703424]
[1646002827545,0.99911233,2625.2,2624.3,0.0129837]
[1646002827732,0.25,2625.4,2624.4,0.1522]
[1646002827935,3.5,2625.6,2623.8,0.1522]
[1646002828138,0.457,2625.5,2623.8,0.1522]
[1646002828339,0.99911233,2625.2,2623.8,0.1522]
[1646002828536,0.13819997,2625.9,2623.7,0.01703424]
[1646002828537,0.1524,2625.8,2623.7,0.01703424]
[1646002828735,3.63819997,2625.9,2623.8,0.1522]
[1646002828736,3.93819997,2625.9,2623.8,0.1522]
[1646002828935,0.99911233,2625.7,2623.8,0.1522]
[1646002829135,3.957,2625.8,2623.8,0.16923424]
[1646002829335,0.3,2625.7,2623.8,0.16923424]
[1646002829737,1.99092233,2625.6,2623.8,0.01703424]
[1646002829936,1.15141233,2625.6,2623.8,0.01703424]
[1646002830237,1.15141233,2625.6,2624.2,0.00404004]
[1646002830238,0.99911233,2625.4,2624.2,0.00404004]
[1646002830442,0.99911233,2625.3,2624.2,0.00404004]
[1646002830640,0.1521,2625.2,2624.2,0.00404004]
[1646002830875,4.65121233,2625.2,2624.2,4.004e-05]
[1646002831174,0.99911233,2624.6,2624.2,3.424e-05]
[1646002831373,0.99911233,2624.3,2624.2,0.002554]
[1646002831570,4.49911233,2624.3,2624.2,5.4e-05]
[1646002831771,10.25611233,2624.3,2624.2,5.4e-05]
[1646002831970,11.25611233,2624.3,2624.2,5.4e-05]
[1646002832175,11.25611233,2624.3,2622.1,0.1524]
[1646002832176,3.0,2624.2,2622.1,0.1524]
[1646002832377,3.0,2624.2,2621.8,0.01265422]
[1646002832378,3.957,2624.1,2621.8,0.01265422]
[1646002832577,0.99911233,2623.6,2621.8,0.01265422]
[1646002832778,5.0,2623.4,2621.8,0.01265422]
[1646002832985,5.0,2623.2,2621.7,7.3]
[1646002833176,0.99911233,2622.8,2620.9,0.1525]
[1646002833377,0.5,2622.7,2620.9,0.1525]
[1646002833678,0.5,2622.7,2621.9,5.0]
[1646002833879,0.25,2623.4,2622.1,0.16526002]
[1646002834077,0.25,2623.4,2621.9,5.0]
[1646002834277,0.25,2623.4,2622.1,0.16523919]
[1646002834478,0.81317746,2624.0,2622.1,0.62223919]
[1646002834726,0.25,2624.0,2622.1,0.92223919]
[1646002834927,0.25,2624.0,2622.6,5.0]
[1646002834928,0.99917746,2624.0,2622.6,5.0]
[1646002835131,0.39841883,2626.1,2622.2,0.38252]
[1646002835132,0.25,2624.5,2622.8,0.01280864]
[1646002835328,0.25,2624.5,2622.8,0.457]
[1646002835541,1.24917746,2624.5,2622.8,0.457]
[1646002835730,1.24917746,2624.5,2622.8,0.757]
[1646002835932,1.24917746,2624.5,2622.9,0.1524]
[1646002836131,1.24917746,2624.5,2622.9,0.6094]
[1646002836330,1.24917746,2624.5,2623.1,0.00294625]
[1646002836535,0.25,2624.5,2623.2,0.1524]
[1646002836731,0.25,2624.5,2623.3,0.457]
[1646002836932,1.13737743,2624.7,2623.4,0.1524]
[1646002836933,0.13819997,2624.7,2623.4,0.1524]
[1646002837135,0.99917746,2624.9,2623.5,0.457]
[1646002837334,0.99917746,2624.9,2623.6,0.1524]
[1646002837532,0.25,2625.1,2623.7,0.457]